bitfinex-derivatives/quotes_BNBF0:USTF0_20250329
["timestamp","ask_amount","ask_price","bid_price","bid_amount"]
[1743245714607,5.4473667,604.73,604.3,0.27128614]
[1743245714805,6.40833257,604.72,604.3,0.27128614]
[1743245715005,4.10502627,604.71,604.29,2.177]
[1743245715306,4.10502627,604.7,604.29,2.177]
[1743245715508,2.09514103,604.69,604.29,2.177]
[1743245715803,0.96096587,604.7,604.29,2.177]
[1743245715804,2.09514103,604.68,604.3,0.27128599]
[1743245716005,2.09543326,604.67,604.3,0.27128599]
[1743245716204,2.09543326,604.66,604.3,1.05828599]
[1743245716404,2.09543326,604.65,604.3,0.787]
[1743245716598,2.09543326,604.64,604.3,0.787]
[1743245716803,1.25635562,604.63,604.3,0.787]
[1743245717001,4.10547534,604.62,604.3,0.787]
[1743245717204,2.09543206,604.61,604.3,0.787]
[1743245717401,2.09543206,604.6,604.3,0.787]
[1743245717599,2.09543206,604.59,604.3,0.787]
[1743245717805,2.09543206,604.58,604.3,0.787]
[1743245718101,2.09551402,604.57,604.3,0.787]
[1743245718310,0.96096587,604.6,604.3,0.787]
[1743245718605,0.96096587,604.56,604.3,0.787]
[1743245719307,0.49620719,604.81,604.3,0.787]
[1743245719509,5.94603049,604.8,604.3,0.787]
[1743245719807,6.90743961,604.79,604.3,0.787]
[1743245720008,5.94603049,604.78,604.3,0.787]
[1743245720209,5.94603049,604.77,604.3,0.787]
[1743245720408,6.90743961,604.76,604.3,0.787]
[1743245720709,5.94603049,604.75,604.3,0.787]
[1743245721008,5.94603049,604.74,604.3,0.787]
[1743245721207,5.94603049,604.73,604.3,0.787]
[1743245721402,5.94603049,604.72,604.3,0.787]
[1743245721612,6.90745693,604.71,604.3,0.787]
[1743245721807,5.94604781,604.7,604.3,0.787]
[1743245722004,5.94604781,604.69,604.3,0.787]
[1743245722209,5.94604781,604.68,604.3,0.787]
[1743245722408,5.94604781,604.67,604.3,0.787]
[1743245722606,5.4498233,604.66,604.3,0.787]
[1743245722802,5.4498233,604.65,604.3,0.787]
[1743245723009,5.94607617,604.64,604.3,0.787]
[1743245723204,5.94607617,604.63,604.3,0.787]
[1743245723402,5.94607617,604.62,604.3,0.787]
[1743245723605,6.41123242,604.61,604.3,0.787]
[1743245723803,5.4498233,604.6,604.3,0.787]
[1743245724008,5.4498233,604.59,604.3,0.787]
[1743245724317,5.4498233,604.58,604.3,0.787]
[1743245724505,5.4498233,604.57,604.3,0.787]
[1743245724703,5.4498233,604.56,604.3,0.787]
[1743245724908,5.4498233,604.55,604.3,0.787]
[1743245725108,5.4498233,604.54,604.3,0.787]
[1743245725409,4.10687601,604.53,604.3,0.787]
[1743245725605,5.06828513,604.52,604.3,0.787]
[1743245725811,0.83934205,604.51,604.3,0.787]
[1743245726106,2.09694829,604.5,604.3,0.787]
[1743245726311,5.45333593,604.49,604.3,2.673]
[1743245726514,5.45333593,604.48,604.3,2.673]
[1743245726714,4.10931349,604.47,604.3,2.673]
[1743245726915,4.10931349,604.46,604.3,2.673]
[1743245727114,2.09694829,604.45,604.3,2.673]
[1743245727413,3.05835741,604.44,604.3,2.673]
[1743245727614,2.09694829,604.43,604.3,2.673]
[1743245727816,2.09694829,604.42,604.3,2.673]
[1743245728118,2.09694829,604.41,604.3,2.673]
[1743245728319,2.09694829,604.4,604.3,2.673]
[1743245728519,1.25760624,604.39,604.3,2.673]
[1743245728715,1.25760624,604.38,604.3,2.673]
[1743245728917,0.96140912,604.41,604.3,2.673]
[1743245729116,0.96140912,604.37,604.3,2.673]
[1743245729911,0.98144325,604.67,604.3,2.673]
[1743245729912,0.96140912,604.36,604.3,2.673]
[1743245730318,0.96140912,604.35,604.3,2.673]
[1743245731119,0.96140912,604.34,604.3,2.673]
[1743245731918,0.49628766,604.59,604.3,2.673]
[1743245732115,5.45012275,604.58,604.3,2.673]
[1743245732321,5.45010403,604.57,604.3,2.673]
[1743245732521,5.45010403,604.56,604.3,2.673]
[1743245732716,2.09619385,604.55,604.3,2.673]
[1743245732918,2.09619385,604.54,604.3,2.673]
[1743245733115,2.09619385,604.53,604.3,2.673]
[1743245733319,2.09619385,604.52,604.3,2.673]
[1743245733519,3.05768146,604.51,604.3,2.673]
[1743245733719,1.2568024,604.5,604.3,2.673]
[1743245733920,1.2568024,604.49,604.3,2.673]
[1743245734120,0.96148761,604.48,604.3,2.673]
[1743245734722,0.96148761,604.47,604.3,2.673]
[1743245735324,0.49623098,604.75,604.3,2.673]
[1743245735517,5.94595246,604.74,604.3,2.673]
[1743245735720,5.94595246,604.73,604.3,2.673]
[1743245735923,5.94595246,604.72,604.3,2.673]
[1743245736225,5.94595246,604.71,604.3,2.673]
[1743245736427,5.94595246,604.7,604.3,2.673]
[1743245736626,5.94595246,604.69,604.3,2.673]
[1743245736821,5.94595246,604.68,604.3,2.673]
[1743245737024,6.90723897,604.67,604.3,2.673]
[1743245737228,5.94595246,604.66,604.3,2.673]
[1743245737422,5.44972148,604.65,604.3,2.673]
[1743245737622,5.44972148,604.64,604.3,2.673]
[1743245737927,6.41100799,604.63,604.3,2.673]
[1743245738124,5.44972148,604.62,604.3,2.673]
[1743245738329,5.44972148,604.61,604.3,2.673]
[1743245738528,2.88302105,605.83,604.3,2.673]
[1743245738529,6.9073042,604.6,604.3,2.673]
[1743245738726,5.94601769,604.59,604.3,2.673]
[1743245739030,5.94601769,604.58,604.3,2.673]
[1743245739231,5.94360885,604.57,604.3,2.673]
[1743245739432,5.44731264,604.56,604.3,2.673]
[1743245739633,6.40859915,604.55,604.3,2.673]
[1743245739827,5.44731264,604.54,604.3,2.673]
[1743245740028,5.44731264,604.53,604.3,2.673]
[1743245740329,5.44731264,604.52,604.3,2.673]
[1743245740533,5.44731264,604.51,604.3,2.673]
[1743245740831,5.44731264,604.5,604.3,2.673]
[1743245741034,5.44731264,604.49,604.3,2.673]
[1743245741229,4.1043843,604.48,604.3,2.673]
[1743245741432,4.1043843,604.47,604.3,2.673]
[1743245741633,5.44445734,604.46,604.3,2.673]
[1743245741935,6.40574385,604.45,604.3,2.673]
[1743245742134,5.44445734,604.44,604.3,2.673]
[1743245742433,6.40574385,604.43,604.3,2.673]
[1743245742633,5.44445734,604.42,604.3,2.673]
[1743245742828,0.98043779,604.6,604.3,2.673]
[1743245742829,6.40574385,604.41,604.3,2.673]
[1743245743034,5.44445734,604.4,604.3,2.673]
[1743245743228,5.44445734,604.39,604.3,2.673]
[1743245743435,2.09402205,604.38,604.3,2.673]
[1743245743634,2.09402205,604.37,604.3,2.673]
[1743245743936,2.09402205,604.36,604.3,2.673]
[1743245744135,1.25579003,604.35,604.3,2.673]
[1743245744330,2.09370354,604.34,604.3,2.673]
[1743245744533,1.25579003,604.33,604.3,2.673]
[1743245744836,1.25579003,604.32,604.3,2.673]
[1743245745038,0.96128651,604.34,604.3,2.673]
[1743245745236,0.96128651,604.31,604.3,2.673]
[1743245746237,3.05289203,604.31,604.3,2.673]
[1743245748039,3.0519696,604.31,604.3,2.673]
[1743245749940,3.05213824,604.31,604.3,2.673]
[1743245751638,0.96128651,604.31,604.3,2.673]
[1743245752136,0.49643472,604.61,604.3,2.673]
[1743245752336,5.93484206,604.6,604.3,2.673]
[1743245752538,6.89424579,604.59,604.3,2.673]
[1743245752843,5.93484206,604.58,604.3,2.673]
[1743245753043,5.43840734,604.57,604.3,2.673]
[1743245753238,5.43840734,604.56,604.3,2.673]
[1743245753439,5.93474603,604.55,604.3,2.673]
[1743245753639,5.93474603,604.54,604.3,2.673]
[1743245753843,5.93474603,604.53,604.3,2.673]
[1743245754144,5.93474603,604.52,604.3,2.673]
[1743245754344,5.93474603,604.51,604.3,2.673]
[1743245754643,6.89414976,604.5,604.3,2.673]
[1743245754844,5.93474603,604.49,604.3,2.673]
[1743245755046,5.93474603,604.48,604.3,2.673]
[1743245755245,5.93474603,604.47,604.3,2.673]
[1743245755446,5.93474603,604.46,604.3,2.673]
[1743245755645,5.93474603,604.45,604.3,2.673]
[1743245755945,5.9341364,604.44,604.3,2.673]
[1743245756144,5.9341364,604.43,604.3,2.673]
[1743245756342,5.9341364,604.42,604.3,0.787]
[1743245756547,5.43767734,604.41,604.3,0.787]
[1743245756747,5.93421087,604.4,604.3,0.787]
[1743245756948,5.93421087,604.39,604.3,0.787]
[1743245757142,5.93421087,604.38,604.3,0.787]
[1743245757347,5.93421087,604.37,604.3,0.787]
[1743245757545,5.43767734,604.36,604.3,0.787]
[1743245757744,5.43767734,604.35,604.3,0.787]
[1743245757945,0.95940373,604.36,604.3,0.787]
[1743245757946,5.43622496,604.34,604.3,0.787]
[1743245758142,5.43622496,604.33,604.3,0.787]
[1743245758342,5.43622496,604.32,604.3,0.787]
[1743245758547,5.43622496,604.31,604.3,0.787]
[1743245758947,6.39562869,604.31,604.3,0.787]
[1743245760646,6.89222215,604.31,604.3,0.787]
[1743245761348,6.88709033,604.31,604.3,0.787]
[1743245762053,6.88709033,604.31,604.29,0.97743998]
[1743245762248,5.9276866,604.3,604.17,2.282]
[1743245762448,0.97718853,604.26,604.17,2.282]
[1743245762651,0.97718853,604.23,604.17,2.282]
[1743245762853,3.92389608,604.22,604.17,2.282]
[1743245763053,3.92389608,604.21,604.17,2.282]
[1743245763251,3.92389608,604.2,604.17,2.282]
[1743245763449,4.88329981,604.19,604.17,2.282]
[1743245763642,3.92389608,604.18,604.17,2.282]
[1743245764252,4.88329981,604.18,604.17,2.282]
[1743245765549,4.88329981,604.18,604.17,0.21186135]
[1743245765745,4.88329981,604.18,604.16,1.487]
[1743245765944,3.92389608,604.17,604.16,1.487]
[1743245766146,4.88329981,604.17,604.16,1.487]
[1743245767148,4.84119051,604.17,604.16,1.487]
[1743245768054,4.84119051,604.17,603.06,1.23078804]
[1743245768355,0.97449302,604.02,603.07,0.27173438]
[1743245768552,3.88178678,604.01,603.07,0.27173438]
[1743245768748,3.88178678,604.0,603.07,0.27173438]
[1743245768953,3.88178678,603.99,603.07,0.27173438]
[1743245769253,0.97449302,603.96,603.07,0.27173438]
[1743245769453,3.88178678,603.95,603.07,0.27173438]
[1743245769655,3.88178678,603.94,603.07,0.27173438]
[1743245769854,3.88178678,603.93,603.07,0.27173438]
[1743245770151,4.84119051,603.92,603.08,1.758]
[1743245770356,3.88178678,603.91,603.09,0.27173438]
[1743245770555,3.88178678,603.9,603.09,0.27173438]
[1743245770755,3.88178678,603.89,603.09,0.27173438]
[1743245770955,3.88178678,603.88,603.09,0.27173438]
[1743245771257,3.88178678,603.87,603.1,2.107]
[1743245771455,3.88178678,603.86,603.11,0.27173438]
[1743245771652,3.88178678,603.85,603.11,0.27173438]
[1743245771848,3.88178678,603.84,603.11,0.27173438]
[1743245772155,3.88178678,603.83,603.11,0.27173438]
[1743245772357,3.88178678,603.82,603.11,0.27173438]
[1743245772656,3.88178678,603.81,603.11,0.27173438]
[1743245772851,3.3849522,603.8,603.11,0.27173438]
[1743245773056,3.33588724,603.79,603.11,0.27173438]
[1743245773257,3.33588724,603.78,603.11,0.27173438]
[1743245773460,3.33588724,603.77,603.11,0.27173438]
[1743245773657,0.82022428,603.76,603.11,0.27173438]
[1743245773859,0.82022428,603.75,603.11,0.27173438]
[1743245774156,0.82022428,603.74,603.11,0.27173438]
[1743245774357,0.82022428,603.73,603.12,0.27174247]
[1743245774558,0.49692444,604.03,603.13,0.27174247]
[1743245774858,3.82102937,604.02,603.14,0.27174247]
[1743245775157,3.82102937,604.01,603.15,0.27174247]
[1743245775358,4.74238373,604.0,603.11,0.27174247]
[1743245775653,3.82102937,603.99,603.11,0.27174247]
[1743245775851,3.82102937,603.98,603.11,0.27174247]
[1743245776053,3.82102937,603.97,603.11,0.27174247]
[1743245776251,3.82102937,603.96,603.11,0.27174247]
[1743245776452,3.82102937,603.95,603.11,0.27174247]
[1743245776657,3.82102937,603.94,603.11,0.27174247]
[1743245776859,3.82103965,603.93,603.11,0.27174247]
[1743245777059,3.82103965,603.92,603.1,2.107]
[1743245777360,3.82103965,603.91,603.11,0.27178643]
[1743245777559,4.79553267,603.9,603.11,0.27178643]
[1743245777857,0.92135436,603.91,603.11,0.27178643]
[1743245777858,0.97449302,603.87,603.11,0.27178643]
[1743245778058,3.82103965,603.86,603.11,0.27178643]
[1743245778360,3.82103965,603.85,603.1,2.107]
[1743245778560,3.82103965,603.84,603.1,2.107]
[1743245778756,3.82103965,603.83,603.11,0.27179117]
[1743245778959,3.81726261,603.82,603.11,0.27179117]
[1743245779159,3.81726261,603.81,603.11,0.27179117]
[1743245779361,3.81726261,603.8,603.11,0.27179117]
[1743245779560,3.32028608,603.79,603.11,0.27179117]
[1743245779755,2.11894499,603.78,603.11,0.27179117]
[1743245779955,0.81497884,603.77,603.11,0.27179117]
[1743245780156,0.81497884,603.76,603.11,0.27179117]
[1743245780361,0.81497884,603.75,603.11,0.27179117]
[1743245780557,0.81497884,603.74,603.11,0.27179117]
[1743245780758,0.49693485,603.91,603.11,0.27179117]
[1743245780958,3.81655639,603.9,603.11,0.27179117]
[1743245781163,3.81656024,603.89,603.12,0.28827874]
[1743245781464,3.31965289,603.88,603.13,0.27179117]
[1743245781664,3.31965289,603.87,603.13,0.27179117]
[1743245781862,3.31965289,603.86,603.13,0.27179117]
[1743245782062,3.31965289,603.85,603.13,0.27179117]
[1743245782363,2.11853131,603.84,603.12,0.2883062]
[1743245782663,2.11853131,603.83,603.13,0.27179117]
[1743245782864,2.11853131,603.82,603.13,0.27179117]
[1743245783063,0.814553,603.81,603.13,0.27179117]
[1743245783266,0.814553,603.8,603.13,0.27179117]
[1743245783562,0.814553,603.79,603.13,0.27179117]
[1743245783764,0.814553,603.78,603.13,0.27179117]
[1743245783965,0.814553,603.77,603.13,0.27179117]
[1743245784159,0.814553,603.76,603.13,0.27179117]
[1743245784361,0.814553,603.75,603.13,0.27179117]
[1743245784660,0.814553,603.74,603.13,0.27179117]
[1743245784861,0.4969114,603.99,603.13,0.27179117]
[1743245785062,3.81534468,603.98,603.13,0.27179117]
[1743245785266,3.81534468,603.97,603.14,0.27173835]
[1743245785464,3.81534468,603.96,603.13,0.27173835]
[1743245785660,3.81534468,603.95,603.13,0.27173835]
[1743245785861,3.81534468,603.94,603.13,0.27173835]
[1743245786056,3.81534468,603.93,603.13,0.27173835]
[1743245786259,3.81534468,603.92,603.13,0.27173835]
[1743245786458,3.81534468,603.91,603.13,0.27173835]
[1743245786664,3.81534468,603.9,603.13,0.27173835]
[1743245786863,1.20067903,603.89,603.13,0.27173835]
[1743245787166,3.81551583,603.88,603.13,0.27173835]
[1743245787366,3.81551583,603.87,603.13,0.27173835]
[1743245787567,3.81551583,603.86,603.13,0.27173835]
[1743245787768,3.81551583,603.85,603.13,0.27173835]
[1743245788066,3.81551583,603.84,603.13,0.27173835]
[1743245788267,3.81551583,603.83,603.13,0.27173835]
[1743245788566,3.31853621,603.82,603.13,0.27173835]
[1743245788765,3.31853621,603.81,603.13,0.27173835]
[1743245788961,3.31845936,603.8,603.13,0.27173835]
[1743245789166,3.31845936,603.79,603.13,0.27173835]
[1743245789367,0.91983143,603.8,603.13,0.27173835]
[1743245789368,3.31845936,603.78,603.13,0.27173835]
[1743245789567,3.31845936,603.77,603.13,0.27173835]
[1743245789867,0.91983143,603.8,603.13,0.27173835]
[1743245789868,3.31848691,603.76,603.13,0.27173835]
[1743245790168,2.11785718,603.75,603.13,0.27173835]
[1743245790369,2.11785718,603.74,603.13,0.27173835]
[1743245790571,0.81456045,603.73,603.13,0.27173835]
[1743245790866,0.81456045,603.72,603.13,0.27173835]
[1743245791065,0.81456045,603.71,603.13,0.27173835]
[1743245791265,1.69794478,603.96,603.13,0.27173835]
[1743245791464,3.81637664,603.95,603.14,0.27173835]
[1743245791666,3.81637664,603.94,603.13,0.27173835]
[1743245791868,3.81637664,603.93,603.14,0.27173835]
[1743245792071,3.81637664,603.92,603.13,0.27173835]
[1743245792265,3.81637664,603.91,603.15,0.27173835]
[1743245792465,3.81637664,603.9,603.16,0.27173835]
[1743245792769,3.81637664,603.89,603.13,0.27173835]
[1743245792969,3.81637664,603.88,603.14,0.27173835]
[1743245793166,3.81637664,603.87,603.14,0.27173835]
[1743245793364,3.81637664,603.86,603.15,0.27173835]
[1743245793671,3.81637664,603.85,603.16,0.27173835]
[1743245793871,3.81637664,603.84,603.13,0.27173835]
[1743245794071,3.81637664,603.83,603.13,0.27173835]
[1743245794371,3.81637664,603.82,603.13,0.27173835]
[1743245794571,3.81637664,603.81,603.13,0.27173835]
[1743245794795,3.3194145,603.8,603.13,0.27173835]
[1743245794971,3.3194145,603.79,603.13,0.27173835]
[1743245795164,3.3194145,603.78,603.13,0.27173835]
[1743245795470,3.3194145,603.77,603.14,0.27178094]
[1743245795671,2.11843186,603.76,603.14,0.27178094]
[1743245795872,2.11843186,603.75,603.15,0.27178094]
[1743245796070,2.11843186,603.74,603.13,0.27178094]
[1743245796271,0.81478148,603.73,603.14,0.27178094]
[1743245796468,0.81478148,603.72,603.13,0.27178094]
[1743245796667,0.81478148,603.71,603.13,0.27178094]
[1743245796871,0.81569829,603.7,603.13,0.27178094]
[1743245797171,0.81569829,603.69,603.14,2.192]
[1743245797472,0.81569829,603.68,603.15,0.27178828]
[1743245797666,0.49698695,603.93,603.15,0.27178828]
[1743245797667,0.81569829,603.67,603.15,0.27178828]
[1743245797868,0.49698695,603.92,603.15,0.27178828]
[1743245797869,0.81569829,603.66,603.15,0.27178828]
[1743245798068,0.49698824,603.9,603.15,0.27178828]
[1743245798372,3.82119052,603.89,603.15,0.27178828]
[1743245798571,3.82119052,603.88,603.15,0.27178828]
[1743245798771,3.82119052,603.87,603.15,0.27178828]
[1743245798969,3.82156817,603.86,603.15,0.27178828]
[1743245799165,3.82156817,603.85,603.15,0.27178828]
[1743245799371,3.82156817,603.84,603.15,0.27178828]
[1743245799572,3.82156817,603.83,603.15,0.27178828]
[1743245799766,3.82156817,603.82,603.15,0.27178828]
[1743245799966,3.82156817,603.81,603.15,0.27178828]
[1743245800167,3.82156817,603.8,603.15,0.27178828]
[1743245800371,3.32457993,603.79,603.19,1.23078804]
[1743245800572,3.32457993,603.78,603.19,1.23078804]
[1743245800766,0.92154412,603.8,603.19,1.23078804]
[1743245800767,3.32457993,603.77,603.2,0.27178878]
[1743245800971,0.92154412,603.8,603.2,0.27178878]
[1743245800972,3.32457993,603.76,603.2,0.27178878]
[1743245801272,3.32457993,603.75,603.2,0.27178878]
[1743245801473,3.32457993,603.74,603.2,0.27178878]
[1743245801772,4.24953968,603.73,603.2,0.27178878]
[1743245801968,3.32799556,603.72,603.2,0.27178878]
[1743245802173,3.32799556,603.71,603.21,1.23078804]
[1743245802373,3.8250749,603.7,603.21,1.23078804]
[1743245802570,3.82508112,603.69,603.21,1.23078804]
[1743245802872,3.82508112,603.68,603.21,1.23078804]
[1743245803073,3.82508112,603.67,603.21,1.23078804]
[1743245803270,3.82508112,603.66,603.21,1.23078804]
[1743245803474,3.82508112,603.65,603.21,1.23078804]
[1743245803672,3.82508112,603.64,603.22,1.362]
[1743245803975,3.82508112,603.63,603.22,1.362]
[1743245804175,3.82508112,603.62,603.22,1.362]
[1743245804375,3.32799556,603.61,603.22,1.362]
[1743245804675,3.32799556,603.6,603.22,1.362]
[1743245804871,3.82500119,603.59,603.22,1.362]
[1743245805068,4.24936774,603.58,603.22,1.362]
[1743245805273,3.82501434,603.57,603.22,1.362]
[1743245805474,3.82501434,603.56,603.22,1.362]
[1743245805675,3.32782362,603.55,603.22,1.362]
[1743245805872,2.12369729,603.54,603.22,1.362]
[1743245806073,3.32810339,603.53,603.22,1.362]
[1743245806273,3.32824883,603.52,603.22,1.362]
[1743245806469,0.81680665,603.51,603.22,1.362]
[1743245806672,2.12407208,603.5,603.22,1.362]
[1743245806874,0.81704231,603.49,603.22,1.362]
[1743245807074,0.81704231,603.48,603.22,1.362]
[1743245807277,0.81704231,603.47,603.22,1.362]
[1743245807479,0.92154412,603.48,603.22,1.362]
[1743245807480,0.81704231,603.46,603.22,1.362]
[1743245807677,0.81704231,603.45,603.22,1.362]
[1743245807876,0.92154412,603.48,603.22,1.362]
[1743245808076,0.49716528,603.7,603.22,1.362]
[1743245808273,4.74994862,603.69,603.22,1.362]
[1743245808475,3.82685621,603.68,603.22,1.362]
[1743245808676,0.92309241,603.69,603.22,1.362]
[1743245808677,3.82685621,603.67,603.22,1.362]
[1743245808872,3.82685621,603.66,603.22,1.362]
[1743245809177,3.32969093,603.65,603.22,1.362]
[1743245809375,3.32969093,603.64,603.22,1.362]
[1743245809574,3.32969093,603.63,603.22,1.362]
[1743245809772,3.32969093,603.62,603.22,1.362]
[1743245809977,3.32969093,603.61,603.22,1.362]
[1743245810173,4.25278334,603.6,603.22,1.362]
[1743245810378,3.32969093,603.59,603.22,1.362]
[1743245810583,3.32969093,603.58,603.22,1.362]
[1743245810783,3.33258277,603.57,603.22,1.362]
[1743245810982,3.33258277,603.56,603.22,1.362]
[1743245811179,0.81805361,603.55,603.22,1.362]
[1743245811375,0.81805361,603.54,603.22,1.362]
[1743245811581,0.81805361,603.53,603.22,1.362]
[1743245811781,0.49709582,603.8,603.22,1.362]
[1743245811982,3.83157424,603.79,603.22,1.362]
[1743245812183,3.83157424,603.78,603.22,1.362]
[1743245812384,3.83157424,603.77,603.22,1.362]
[1743245812584,3.83157424,603.76,603.22,1.362]
[1743245812782,3.83157424,603.75,603.22,1.362]
[1743245812984,3.83157424,603.74,603.22,1.362]
[1743245813189,3.33447842,603.73,603.23,0.27181907]
[1743245813488,0.81846766,603.72,603.23,0.27181907]
[1743245813691,0.81846766,603.71,603.23,0.27181907]
[1743245813989,0.81846766,603.7,603.23,0.27181907]
[1743245814289,0.49695774,603.98,603.23,0.27181907]
[1743245814483,3.84110374,603.97,603.23,0.27181907]
[1743245814790,4.76815212,603.96,603.23,0.27181907]
[1743245814988,3.84110374,603.95,603.23,0.27181907]
[1743245815183,3.84110374,603.94,603.23,0.27181907]
[1743245815386,3.84110374,603.93,603.23,0.27181907]
[1743245815587,3.84110374,603.92,603.23,0.27181907]
[1743245815788,3.84110374,603.91,603.23,0.27181907]
[1743245815981,3.84110374,603.9,603.23,0.27181907]
[1743245816182,3.84110374,603.9,603.22,1.362]
[1743245816183,3.84110374,603.89,603.22,1.362]
[1743245816489,3.344146,603.88,603.23,0.27174245]
[1743245816687,3.344146,603.87,603.23,0.27174245]
[1743245816885,3.344146,603.86,603.23,0.27174245]
[1743245817083,3.344146,603.85,603.23,0.27174245]
[1743245817286,3.344146,603.84,603.23,0.27174245]
[1743245817481,0.92704838,603.85,603.23,0.27174245]
[1743245817482,2.03081288,603.83,603.23,0.27174245]
[1743245817690,2.03081288,603.82,603.23,0.27174245]
[1743245817888,2.03081288,603.81,603.24,0.27172935]
[1743245818189,2.03081288,603.8,603.25,0.27172935]
[1743245818387,2.03081288,603.79,603.23,0.27172935]
[1743245818588,2.03081288,603.78,603.26,1.791]
[1743245818787,2.03081288,603.77,603.27,0.27172935]
[1743245818990,0.8208332,603.76,603.27,0.27172935]
[1743245819288,2.03751425,603.75,603.27,0.27172935]
[1743245819483,2.03751425,603.74,603.27,0.27172935]
[1743245819686,0.92704838,603.77,603.27,0.27172935]
[1743245819888,0.92704838,603.74,603.27,0.27172935]
[1743245820488,0.92704838,603.73,603.27,0.27172935]
[1743245821188,0.49690057,603.97,603.27,0.27172935]
[1743245821383,3.85386982,603.96,603.27,0.27172935]
[1743245821588,3.35702754,603.95,603.27,0.27172935]
[1743245821884,3.35702754,603.94,603.27,0.27172935]
[1743245822082,3.35702754,603.93,603.27,0.27172935]
[1743245822287,4.28751692,603.92,603.27,0.27172935]
[1743245822489,2.03866616,603.91,603.27,0.27172935]
[1743245822686,2.03866616,603.9,603.27,0.27172935]
[1743245822885,0.93048938,603.91,603.27,0.27172935]
[1743245823285,0.93048938,603.91,603.27,0.60325586]
[1743245823488,3.14344344,605.38,603.27,0.60325586]
[1743245823489,0.93048938,603.9,603.28,0.27172935]
[1743245824292,0.49671527,604.34,603.28,0.27172935]
[1743245824491,3.85630616,604.33,603.28,0.27172935]
[1743245824687,3.85630616,604.32,603.28,0.27172935]
[1743245824996,3.85630616,604.31,603.28,0.27172935]
[1743245825186,3.85630616,604.3,603.28,0.27172935]
[1743245825386,3.85630616,604.29,603.28,0.27172935]
[1743245825589,3.85630616,604.28,603.28,0.60325036]
[1743245825893,3.85630616,604.27,603.29,0.27172935]
[1743245826090,3.85630616,604.26,603.29,0.27172935]
[1743245826291,3.85630616,604.25,603.29,0.27172935]
[1743245826494,3.85630616,604.24,603.29,0.27172935]
[1743245826687,0.97263301,604.39,603.29,0.27172935]
[1743245826688,4.78754313,604.23,603.29,0.27172935]
[1743245826994,3.85630616,604.22,603.29,0.27172935]
[1743245827197,3.35959089,604.21,603.3,0.33151002]
[1743245827392,3.35959089,604.2,603.31,0.27172935]
[1743245827593,3.35959089,604.19,603.31,0.27172935]
[1743245827894,3.35959089,604.18,603.31,0.27172935]
[1743245828091,3.35959089,604.17,603.32,0.33149903]
[1743245828296,3.35732026,604.16,603.33,0.27172935]
[1743245828495,2.04021012,604.15,603.33,0.27172935]
[1743245828694,2.04021012,604.14,603.33,0.27172935]
[1743245828892,2.04021012,604.13,603.33,0.27172935]
[1743245829090,2.04021012,604.12,603.33,0.27172935]
[1743245829290,0.82461298,604.11,603.33,0.27172935]
[1743245829495,0.82461298,604.1,603.33,0.27172935]
[1743245829695,0.93123697,604.09,603.34,0.27155895]
[1743245829890,0.93123697,604.09,603.33,0.27155895]
[1743245830196,0.93123697,604.09,603.32,0.33149903]
[1743245830197,0.49661645,604.33,603.34,0.27155895]
[1743245830394,3.84790167,604.32,603.33,0.27155895]
[1743245830589,3.84790167,604.31,603.34,0.27155895]
[1743245830795,3.84790167,604.3,603.33,0.27155895]
[1743245831088,3.84790167,604.29,603.34,0.27155895]
[1743245831288,3.84790167,604.28,603.34,0.27155895]
[1743245831494,3.35128522,604.27,603.35,0.6030415]
[1743245831694,3.35128522,604.26,603.36,0.60303601]
[1743245831892,3.35128522,604.25,603.37,0.60303051]
[1743245832100,3.35128522,604.24,603.38,0.60302502]
[1743245832297,2.03518295,604.23,603.39,0.33146058]
[1743245832495,2.03518295,604.22,603.4,0.27155895]
[1743245832792,2.03518295,604.21,603.41,0.33144959]
[1743245832994,2.03518295,604.2,603.42,0.27155895]
[1743245833299,0.9289195,604.21,603.42,0.27155895]
[1743245833300,0.82256392,604.19,603.42,0.27155895]
[1743245833498,0.82256392,604.18,603.42,0.27155895]
[1743245833691,0.82256392,604.17,603.42,0.27155895]
[1743245833893,0.9289195,604.19,603.42,0.27155895]
[1743245834095,0.82150533,604.18,603.42,0.27155895]
[1743245834295,0.82150533,604.17,603.42,0.27155895]
[1743245834496,0.82150533,604.17,603.41,0.33144959]
[1743245834497,0.9289195,604.16,603.41,0.33144959]
[1743245834699,2.0314194,604.15,603.42,0.2715205]